Cogmind - Beta 15 @@@ ROGUE MODE // 2025.10.13 @ 06:11:21 Player: aliser Result: Destroyed by G-34 Mercenary with Small Laser Performance ------------- Evolutions (1) 500 Regions Visited (3) 600 Robots Destroyed (11) 55 Value Destroyed (216) 216 Prototype IDs (0) 0 Alien Tech Used (0) 0 Bonus (0) 0 TOTAL SCORE: 1371 Bonus ------- None Cogmind --------- Core Integrity 0/400 Matter 7/300 Energy 70/100 System Corruption 0% Temperature Cool (6) Movement Core (50) Location -9/Materials Parts ------- > --- POWER (1) -------- (None) > --- PROPULSION (2) --- (None) > --- UTILITY (3) ------ (None) > --- WEAPON (3) ------- (None) > --- INVENTORY (5) ---- Light Assault Rifle Heavy Assault Rifle Grenade Launcher Grenade Launcher Peak State ------------ > --- POWER ------------ Ion Engine > --- PROPULSION ------- Light Treads Light Treads > --- UTILITY ---------- Small Storage Unit Targeting Computer > --- WEAPON ----------- Assault Rifle Grenade Launcher > --- INVENTORY -------- Ion Engine Signal Interpreter Light Assault Rifle Light Assault Rifle Grenade Launcher [Rating: 7] Favorites ----------- Power Ion Engine Engine Ion Engine Propulsion Light Treads Treads Light Treads Utility Small Storage Unit Storage Small Storage Unit Processor Targeting Computer Weapon Assault Rifle Ballistic Gun Assault Rifle Ballistic Cannon Improved Light Cannon Launcher Grenade Launcher Special Weapon Mining Laser Build | -11 -10 -10 -9 ------- Run | Yrd Mat Min Mat Slots Evolved 2 | . . . 2 Power . | . . . . Propulsion . | . . . . Utility 1 | . . . 1 Weapon 1 | . . . 1 Parts Attached 11 | 4 4 . 3 Power 2 | . 1 . 1 Engine 2 | . 1 . 1 Core . | . . . . Reactor . | . . . . Propulsion 2 | 2 . . . Treads 2 | 2 . . . Leg . | . . . . Wheel . | . . . . Hover . | . . . . Flight . | . . . . Utility 2 | 1 1 . . Device . | . . . . Storage 1 | 1 . . . Processor 1 | . 1 . . Hackware . | . . . . Protection . | . . . . Artifact . | . . . . Weapon 5 | 1 2 . 2 Energy Gun . | . . . . Energy Cannon . | . . . . Ballistic Gun 2 | 1 1 . . Ballistic Cannon 1 | . . . 1 Launcher 1 | . 1 . . Special Weapon 1 | . . . 1 Impact Weapon . | . . . . Slashing Weapon . | . . . . Piercing Weapon . | . . . . Special Melee Weapon . | . . . . Unidentified Prototypes . | . . . . Parts Lost 9 | . . . 9 Power 2 | . . . 2 Propulsion 2 | . . . 2 Utility 1 | . . . 1 Weapon 4 | . . . 4 Highest Loss Streak 6 | . . . 6 To Critical Strikes . | . . . . Average Backups 4 | 1 3 6 5 Power . | 1 1 1 . Propulsion . | . . . . Utility . | . . 1 . Weapon 3 | . 2 4 4 Tool/Special . | . . . . Unused Backups 3 | . . . 3 Power . | . . . . Propulsion . | . . . . Utility 1 | . . . 1 Weapon 2 | . . . 2 Tool/Special . | . . . . Average Slot Usage (%) 85 | . 91 100 51 Engine 12 | . 14 14 8 Treads 24 | . 28 28 12 Storage 12 | . 14 14 7 Processor 9 | . 6 14 7 Ballistic Gun 17 | . 15 19 14 Launcher 7 | . 11 8 . Peak Build Rating 7 | 4 7 7 7 Average Rating 5 | 3 6 7 4 On Entrance 4 | . 4 7 7 Naked Turns 14 | . . . 14 Heaviest Build 15 | 6 15 15 13 Greatest Support 40 | 40 40 40 40 Greatest Overweight (x) 4 | . . . 4 Average Overweight (x) . | . . . . Largest Inventory Capacity 8 | 8 8 8 8 Average Capacity 7 | 6 8 8 7 Most Carried 6 | 4 6 6 6 Average Carried 4 | 2 3 6 5 Final Capacity 8 | 8 8 8 5 Final Carried 6 | 4 6 6 4 Class Distribution -------------------- 100% | Mutant Dominant Class ---------------- Mutant | -10/Materials Mutant | -10/Mines Mutant | -9/Materials Resources | -11 -10 -10 -9 ----------- Run | Yrd Mat Min Mat Matter Collected 259 | 189 34 36 . Remotely . | . . . . Salvage Created 187 | . 67 81 39 Parts 21 | . 4 15 2 Haulers Intercepted . | . . . . Recyclers Shooed 1 | . 1 . . Parts Field Recycled . | . . . . Retrieved Matter . | . . . . Parts Self-Destructed . | . . . . Prevented . | . . . . Kills | -11 -10 -10 -9 ------- Run | Yrd Mat Min Mat Combat Hostiles Destroyed 9 | . 2 6 1 Guns 4 | . . 4 . Cannons 1 | . . . 1 AOE 4 | . 2 2 . Classes Destroyed 5 | . 2 2 1 Tunneler 1 | . . 1 . Watcher 1 | . 1 . . Swarmer 6 | . . 6 . Grunt 2 | . 2 . . Sentry 1 | . . . 1 Best Kill Streak 4 | . 2 4 1 Combat Bots Only 3 | . 2 3 1 Max Kills in Single Turn 2 | . 1 2 1 Gunslinging . | . . . . Exploded 1 | . 1 1 . Melee . | . . . . Uniques/NPCs Destroyed . | . . . . Combat | -11 -10 -10 -9 -------- Run | Yrd Mat Min Mat Hostile Shots Fired 163 | . 3 40 120 Missed 43 | . 2 9 32 Hits 120 | . 1 31 88 Projectile 120 | . 1 31 88 Critical Strikes 1 | . . 1 . Damage Taken 1340 | . 109 371 860 Core 452 | . 23 25 404 Absorbed by Shields . | . . . . Core Remaining (%) 90 | 100 . 80 . Volleys Fired 37 | 3 14 16 4 Largest 2 | 1 2 2 1 Hottest 100 | 20 50 50 100 Shots Fired 58 | 3 27 24 4 Gun 37 | 3 14 20 . Cannon 3 | . . . 3 Launcher 17 | . 13 4 . Special 1 | . . . 1 Kinetic 40 | 3 14 20 3 Thermal 1 | . . . 1 Explosive 17 | . 13 4 . Electromagnetic . | . . . . Robot Hit Streak 8 | 1 3 4 8 Robot Miss Streak 3 | 1 2 3 . Penetration Max . | . . . . Secondary Targets . | . . . . Shots Hit Robots 24 | 1 7 12 4 Core Hits 16 | . 7 8 1 Critical Kills . | . . . . Critical Parts Destroyed . | . . . . Critical Strikes 1 | . . . 1 Blast 1 | . . . 1 Melee Attacks . | . . . . Impact . | . . . . Slashing . | . . . . Piercing . | . . . . Sneak Attacks . | . . . . Combat Hostiles . | . . . . Follow-up Attacks . | . . . . Damage Inflicted 602 | 9 252 252 89 Guns 154 | 9 21 124 . Cannons 65 | . . . 65 Explosions 357 | . 231 126 . Melee . | . . . . Ramming 2 | . . 2 . Kinetic 219 | 9 21 124 65 Thermal 24 | . . . 24 Explosive 357 | . 231 126 . Electromagnetic . | . . . . Impact . | . . . . Slashing . | . . . . Piercing . | . . . . Highest Corruption . | . . . . Average Corruption . | . . . . Corruption Purged . | . . . . Corruption Blocked . | . . . . Overload Shots . | . . . . Overflow Damage 23 | . 23 . . Projectiles . | . . . . Explosions 23 | . 23 . . Melee . | . . . . Knockbacks . | . . . . Impact . | . . . . Kinetic . | . . . . Secondary . | . . . . Self-Inflicted Damage 103 | . 103 . . Shots 6 | . 6 . . Rammed 1 | . . 1 . Targets Rammed 1 | . . 1 . Kicked . | . . . . Crushed . | . . . . Highest Temperature 15 | . 2 15 3 Average Temperature 6 | . 2 8 2 Received Heat Transfer 285 | . 6 153 126 Siege Activations . | . . . . Martial Activations . | . . . . Shielding Activations . | . . . . Robots Disrupted . | . . . . Combat Hostiles . | . . . . Robots Corrupted . | . . . . Combat Hostiles . | . . . . Parts Fried . | . . . . Impact Corruptions . | . . . . Robots Melted . | . . . . Combat Hostiles . | . . . . Parts Melted . | . . . . Heat Transferred 50 | . . . 50 Parts Sabotaged . | . . . . Parts Stolen . | . . . . Parts Stripped . | . . . . Power Chain Reactions . | . . . . Alert | -11 -10 -10 -9 ------- Run | Yrd Mat Min Mat Maximum Alert Level . | . . . . Low Security (%) 100 | 100 100 100 100 Level 1 . | . . . . Level 2 . | . . . . Level 3 . | . . . . Level 4 . | . . . . Level 5 . | . . . . High Security . | . . . . Max Security . | . . . . Peak Influence 157 | . 81 157 31 Initial 31 | . . 27 31 Average 56 | . 45 110 12 Influence Increases 357 | . 152 175 30 Destroy 0b10 Robot/C 180 | . 40 120 20 Destroy 0b10 Robot/NC 10 | . 5 5 . Destroy Leader 32 | . 2 20 10 Successful Hack 13 | . 13 . . Disable Machine 30 | . 30 . . Destroy Structure 77 | . 62 15 . Lose Combat Pursuer 15 | . . 15 . Influence Decreases 357 | . 80 165 112 Entered New Map 96 | . . 45 51 Time Decay 240 | . 80 120 40 Lost Part 21 | . . . 21 Squads Dispatched 1 | . . . 1 Investigation . | . . . . Extermination . | . . . . Reinforcement 1 | . . . 1 Assault . | . . . . Garrison . | . . . . Intercept . | . . . . Searches Triggered . | . . . . Construction Impeded . | . . . . Haulers Reinforced . | . . . . Active Scanning Responses . | . . . . Cargo Convoy Interrupts . | . . . . Stealth | -11 -10 -10 -9 --------- Run | Yrd Mat Min Mat Distress Signals 2 | . . . 2 Communications Jammed . | . . . . Distress Signals . | . . . . Times Spotted 20 | . 4 8 8 Peak Tracking Total 8 | . 2 3 8 Tactical Retreats 1 | . . 1 . Traps | -11 -10 -10 -9 ------- Run | Yrd Mat Min Mat Traps Triggered . | . . . . Indirectly . | . . . . Trap Hack Attempts . | . . . . Triggered . | . . . . Disarmed . | . . . . Reprogrammed . | . . . . Reused . | . . . . Traps Extracted . | . . . . Installed . | . . . . Triggered . | . . . . Machines | -11 -10 -10 -9 ---------- Run | Yrd Mat Min Mat Machines Disabled 4 | . 4 . . Max in Single Turn 1 | . 1 . . Machines Repaired . | . . . . Machines Dismantled . | . . . . Machines Sabotaged . | . . . . Overloaded Fab Kills . | . . . . Hacking | -11 -10 -10 -9 --------- Run | Yrd Mat Min Mat Machines Accessed 2 | . 2 . . Terminals 1 | . 1 . . Fabricators . | . . . . Repair Stations . | . . . . Recycling Units 1 | . 1 . . Scanalyzers . | . . . . Garrison Access . | . . . . Total Hacks 4 | . 4 . . Successful 3 | . 3 . . Failed 1 | . 1 . . Catastrophic . | . . . . Database Lockouts . | . . . . Manual 1 | . 1 . . Terminals 3 | . 3 . . Fabricators . | . . . . Repair Stations . | . . . . Recycling Units 1 | . 1 . . Scanalyzers . | . . . . Garrison Access . | . . . . Terminal Hacks 2 | . 2 . . Branch Access Points 1 | . 1 . . Zone Layout 1 | . 1 . . Fabricator Hacks . | . . . . Repair Station Hacks . | . . . . Recycling Unit Hacks 1 | . 1 . . Report Inventory 1 | . 1 . . Scanalyzer . | . . . . Garrison Access Hacks . | . . . . Unauthorized Hacks . | . . . . Terminals . | . . . . Fabricators . | . . . . Repair Stations . | . . . . Recycling Units . | . . . . Scanalyzers . | . . . . Garrison Access . | . . . . Data Cores Recovered . | . . . . Used . | . . . . Hacking Detections 1 | . 1 . . Full Trace Events 1 | . 1 . . Feedback Events . | . . . . Feedback Blocked . | . . . . Robot Schematics Acquired . | . . . . Robots Built . | . . . . Authchips . | . . . . Time . | . . . . Total Robot Build Rating . | . . . . Part Schematics Acquired . | . . . . Parts Built . | . . . . Authchips . | . . . . Time . | . . . . Total Part Build Rating . | . . . . Parts Repaired . | . . . . Time . | . . . . Parts Recycled . | . . . . Recycled Matter . | . . . . Retrieved Matter . | . . . . Retrieved Components . | . . . . Parts Scanalyzed . | . . . . Part Schematics Acquired . | . . . . Parts Damaged . | . . . . Bothacking | -11 -10 -10 -9 ------------ Run | Yrd Mat Min Mat Used RIF Installer . | . . . . Robots Hacked . | . . . . Non-combat . | . . . . Combat . | . . . . Robot Hacks Applied . | . . . . Relay Couplers Released . | . . . . Fabnet Peak Effective % . | . . . . Robots Rewired . | . . . . Allies Hacked . | . . . . Hacks Repelled . | . . . . Allies | -11 -10 -10 -9 -------- Run | Yrd Mat Min Mat Total Allies . | . . . . Largest Group . | . . . . Highest-Rated Group . | . . . . Highest-Rated Ally . | . . . . Total Orders . | . . . . Ally Attacks . | . . . . Total Damage . | . . . . Kills . | . . . . Allies Corrupted . | . . . . Allies Melted . | . . . . Intel | -11 -10 -10 -9 ------- Run | Yrd Mat Min Mat Active Infowar (turns) . | . . . . Robot Analysis Total . | . . . . Derelict Logs Recovered 1 | . . 1 . Drone Launches . | . . . . Drone Recoveries . | . . . . Exploration | -11 -10 -10 -9 ------------- Run | Yrd Mat Min Mat Turns Passed 675 | 92 211 243 129 Spaces Moved 355 | 53 98 126 78 Core 45 | 7 . . 38 Treads 310 | 46 98 126 40 Legs . | . . . . Wheels . | . . . . Hover . | . . . . Flight . | . . . . Fastest Speed 50 | 50 160 160 50 Average Speed 150 | 145 160 160 124 Slowest Speed 250 | 160 160 160 250 Overloaded Moves . | . . . . Propulsion Burnouts . | . . . . Robots Hopped . | . . . . Potential Cave-ins . | . . . . Cave-ins Triggered . | . . . . Exploration Rate (%) 18 | 4 27 32 12 Regions Visited 3 Branch Regions 1 Pre-discovered Areas . | . . . . Known Exits Taken 1 | . 1 . . Unknown Exits Taken 2 | 1 . 1 . Scrap Searched . | . . . . Spaces Dug 15 | . 15 . . Terrain Destroyed 82 | . 63 19 . Melee . | . . . . Projectile . | . . . . AOE 82 | . 63 19 . Terrain Rammed . | . . . . Walls Destroyed . | . . . . Machines Disabled . | . . . . Actions | -11 -10 -10 -9 --------- Run | Yrd Mat Min Mat Total 437 | 65 125 143 104 Wait 22 | . 5 . 17 Move 352 | 52 97 125 78 Hop . | . . . . Pick Up 12 | 6 5 . 1 Fast Attach 3 | 2 . . 1 Attach 7 | 2 3 . 2 Detach . | . . . . Swap 2 | . 1 1 . Drop 1 | . . . 1 Fire 37 | 3 14 16 4 Melee . | . . . . Ram . | . . . . Kick . | . . . . Crush 1 | . . 1 . Escape Stasis . | . . . . Rewire . | . . . . Trap . | . . . . Miscellaneous . | . . . . Route ------- -11/Scrapyard -10/Materials (discovered 2 exits: *Min x2) -10/Mines -9/Materials History --------- Turn | Location | Event 3 | -11/Scrapyard | Discovered new exit (range 15) 93 | -11/Scrapyard | Entered Materials 135 | -10/Materials | Identified exit to Mines 303 | -10/Materials | Build established: Mutant 304 | -10/Materials | Entered Mines 406 | -10/Mines | Learned Materials stockpile data 537 | -10/Mines | Discovered new exit (range 8) 547 | -10/Mines | Entered Materials 547 | -9/Materials | Evolved 2 slots: Utility x1, Weapon x1 651 | -9/Materials | Core integrity fell below 50% 664 | -9/Materials | Lost 6 parts (1p2n1u2w) 671 | -9/Materials | Core integrity fell below 20% 676 | -9/Materials | Destroyed by G-34 Mercenary with Small Laser Last Messages --------------- 00621_ ALERT: Hostiles spotted, dispatching reinforcements to Terminal M006. 00623_ Lgt. Assault Rifle destroyed. 00624_ Assault Rifle destroyed. 00633_ Targeting Computer destroyed. 00639_ Dropped Sml. Storage Unit. 00648_ W-16 Scout sends out distress signal. 00651_ Acquired Imp. Light Cannon. 00653_ Y-45 Defender Lgt. Armor Plating blasted off. 00657_ Y-45 Defender destroyed. 00660_ K-01 Serf collects debris. 00660_ Acquired Hvy. Assault Rifle. 00662_ R-06 Scavenger collects Lgt. Armor Plating. 00663_ K-01 Serf collects debris. 00665_ R-06 Scavenger collects Beam Rifle. 00666_ K-01 Serf cleans the Matter Filter. 00668_ Imp. Light Cannon destroyed. 00670_ Ion Engine destroyed. 00670_ K-01 Serf collects debris. 00674_ Mining Laser destroyed. Map ----- +----------------------------------------------------+ | ??????????????????????????????# ????????? | | ??????????????????????????????# #???????? | | ??????????????????????????????# #???????? | | ??????????????????????????????# """ #???????? | | ??????????????????????????????# "" """ #????#### | | ??????????????????????????????# S"" """ ##???# | | ??????????????????????????????# "" #???# | | ??????????????????????????????# #????# | | ??????????????????#################+########## | | ????????????????? | | ???????????????? | | ???????????????#?? """"" | | ???????????????+ ??""" ""T"" ###/############# | | ???????????????# """"" # #?????? | | ???????????????# """"" # """ #?????? | | ???????????????# """"" # """""#?????? | | ???????????????# """ # """""??????? | | ???????????????# # """""??????? | | ???????????????# # """ ??????? | | ???????????????# # ???????? | | ???????????????###### # ???????? | | ????????????????????# #######+###########???????? | | ????????????????????# #???? ????????????????? | | ????????????????????# #??# """ ??????????????? | | ????????????????#####+#### ! """ ""????????????? | | ????????????????# !! s@# """ """???????????? | | ????????????????# """""ss# ???????????? | | ????????????????# """""sg#+##########???????????? | | ????????????????# """""k # #??????????????????? | | ????????????????# """"" r/ #??????????????????? | | ????????????????# """"" # #??????????????????? | | ????????????????# """"" # #??????????????????? | | ????????????????# """""g #? #??????????????????? | | ????????????????# #? ?????????????????? | | ????????????????##########?? ????????????????? | | ???????????????????????????? ???????????????? | | ?????????????????????????????####+??????????????? | | ????????????????????????????????????????????????? | | ????????????????????????????????????????????????? | | ????????????????????????????????????????????????? | | ???????????????????!????????????????????????????? | | ????????????????????????????????????????????????? | | ????????????????????????????????????????????????? | | ????????????????????????????????????????????????? | | ????????????????????????????????????????????????? | | ????????????????????????????????????????????????? | | ????????????????????????????????????????????????? | | ????????????????????????????????????????????????? | | ????????????????????????????????????????????????? | | ????????????????????????????????????????????????? | +----------------------------------------------------+ Best States ------------- Heat Dissipation 28 Energy Generation 10 Energy Capacity 250 Matter Stores 246 Matter Capacity 300 Sight Range 16 Terrain Scan Density 10 Evasion (%) 50 Targeting Accuracy 5 Recoil Reduction 2 Item Schematics ----------------- None Robot Schematics ------------------ None Fabricated ------------ Nothing Repaired ---------- Nothing Alien Tech Used ----------------- None Achievements -------------- None Challenges ------------ None Game ------ Seed MissileKineticAnalyzer Manual? 0 Play Time 00:08:24 Cumulative 24.9 hours Start 2025.10.13 @ 06:04:33 End 2025.10.13 @ 06:11:21 Sessions 1 Manual Loads 0 Difficulty Rogue Special Mode None Game No. 30 Rogue 30 Adventurer 0 Explorer 0 Win Type - Total 0 Types 0/0/0/0/0/0/0/0/0/0 Lore% 18 Gallery% 24 Achievement% 21 Wizard Run 0 Options --------- Layout 0 ASCII 0 Keyboard 0 Movement Mouse Keybinds 0 Fullscreen 1 Font 36/Smallcaps Map View 76x50 Zoom Use 0% Tactical HUD 1 Map Filters NONE Filters NONE Steam 1 RUN: 54167e76-cdbe-4a73-a739-b80e0a903cbb